Cogmind - Beta 9.6 @@@ ROGUE MODE // 2020.07.26 @ 20:10:02 Player: Phillammon Result: Destroyed by as-23264 with Assembled Heavy Rifle Performance ------------- Evolutions (0) 0 Regions Visited (2) 400 Robots Destroyed (12) 60 Value Destroyed (168) 168 Prototype IDs (0) 0 Alien Tech Used (0) 0 Bonus (0) 0 TOTAL SCORE: 628 Bonus ------- None Cogmind --------- Core Integrity 0/250 Matter 198/300 Energy 123/125 System Corruption 0% Temperature Cool (0) Movement Core (250) Ox4 Location -10/Mines Parts ------- > --- POWER (1) -------- Light Ion Engine > --- PROPULSION (2) --- Wheel > --- UTILITY (2) ------ Medium Storage Unit > --- WEAPON (2) ------- Light Assault Rifle Light Assault Rifle > --- INVENTORY (8) ---- Ion Engine Small Storage Unit Medium Laser Peak State ------------ > --- POWER ------------ Ion Engine > --- PROPULSION ------- Light Treads Compact Wheel > --- UTILITY ---------- Small Storage Unit Medium Storage Unit > --- WEAPON ----------- Assault Rifle Light Assault Rifle > --- INVENTORY -------- Ion Engine Light Treads Wheel Medium Laser [Rating: 7] Favorites ----------- Power Light Ion Engine Engine Light Ion Engine Propulsion Light Treads Treads Light Treads Leg Aluminum Leg Wheel Compact Wheel Utility Medium Storage Unit Storage Medium Storage Unit Weapon Light Assault Rifle Ballistic Gun Light Assault Rifle Build | -11 -10 -10 ------- Run | Scr Mat Min Slots Evolved . | . . . Power . | . . . Propulsion . | . . . Utility . | . . . Weapon . | . . . Parts Attached 11 | 2 3 6 Power 2 | . 1 1 Engine 2 | . 1 1 Core . | . . . Reactor . | . . . Propulsion 4 | 2 . 2 Treads 2 | 1 . 1 Leg . | . . . Wheel 2 | 1 . 1 Hover . | . . . Flight . | . . . Utility 1 | . 1 . Device . | . . . Storage 1 | . 1 . Processor . | . . . Hackware . | . . . Protection . | . . . Artifact . | . . . Weapon 4 | . 1 3 Energy Gun . | . . . Energy Cannon . | . . . Ballistic Gun 4 | . 1 3 Ballistic Cannon . | . . . Launcher . | . . . Special Weapon . | . . . Impact Weapon . | . . . Slashing Weapon . | . . . Piercing Weapon . | . . . Special Melee Weapon . | . . . Unidentified Prototypes . | . . . Parts Lost 9 | . 2 7 Power 2 | . 1 1 Propulsion 3 | . . 3 Utility . | . . . Weapon 4 | . 1 3 Highest Loss Streak 6 | . 2 6 Average Slot Usage (%) 76 | . 84 69 Engine 12 | . 13 12 Treads 12 | . 14 12 Wheel 11 | . 14 10 Storage 14 | . 14 14 Ballistic Gun 24 | . 28 20 Naked Turns . | . . . Heaviest Build 16 | 12 16 13 Greatest Support 20 | 16 16 20 Greatest Overweight (x) 1 | . . 1 Average Overweight (x) . | . . . Largest Inventory Capacity 10 | 6 10 8 Average Capacity 7 | 6 7 8 Most Carried 8 | 6 8 6 Average Carried 5 | 5 5 4 Final Capacity 8 | 6 8 8 Final Carried 6 | 4 6 3 Class Distribution -------------------- 100% | Mutant Dominant Class ---------------- Mutant | -10/Materials Mutant | -10/Mines Resources | -11 -10 -10 ----------- Run | Scr Mat Min Matter Collected 328 | 173 126 29 Remotely . | . . . Salvage Created 216 | . 150 66 Parts 23 | . 15 8 Haulers Intercepted . | . . . Recyclers Shooed . | . . . Parts Field Recycled . | . . . Retrieved Matter . | . . . Parts Self-Destructed . | . . . Prevented . | . . . Kills | -11 -10 -10 ------- Run | Scr Mat Min Combat Hostiles Destroyed 12 | . 8 4 Guns 12 | . 8 4 Classes Destroyed 2 | . 2 . Swarmer 10 | . 6 4 Grunt 2 | . 2 . Best Kill Streak 3 | . 3 3 Combat Bots Only 3 | . 3 3 Max Kills in Single Turn 1 | . 1 1 Gunslinging . | . . . Exploded . | . . . Melee . | . . . Uniques/NPCs Destroyed . | . . . Combat | -11 -10 -10 -------- Run | Scr Mat Min Damage Taken 1076 | . 512 564 Core 257 | . 121 136 Absorbed by Shields . | . . . Core Remaining (%) 100 | 100 . . Volleys Fired 67 | . 32 35 Largest 2 | . 2 2 Hottest 40 | . 40 40 Shots Fired 109 | . 64 45 Gun 109 | . 64 45 Cannon . | . . . Launcher . | . . . Special . | . . . Kinetic 109 | . 64 45 Thermal . | . . . Explosive . | . . . Electromagnetic . | . . . Robot Hit Streak 8 | . 8 6 Robot Miss Streak 6 | . 6 3 Penetration Max . | . . . Secondary Targets 2 | . 2 . Max Gunslinging Chain 1 | . 1 . Shots Hit Robots 64 | . 40 24 Core Hits 22 | . 13 9 Critical Hits 1 | . 1 . Critical Kills . | . . . Critical Parts Destroyed 1 | . 1 . Melee Attacks . | . . . Impact . | . . . Slashing . | . . . Piercing . | . . . Sneak Attacks . | . . . Combat Hostiles . | . . . Follow-up Attacks . | . . . Damage Inflicted 651 | . 435 216 Guns 651 | . 435 216 Cannons . | . . . Explosions . | . . . Melee . | . . . Ramming . | . . . Kinetic 651 | . 435 216 Thermal . | . . . Explosive . | . . . Electromagnetic . | . . . Impact . | . . . Slashing . | . . . Piercing . | . . . Highest Corruption . | . . . Average Corruption . | . . . Corruption Purged . | . . . Overload Shots . | . . . Overflow Damage . | . . . Projectiles . | . . . Explosions . | . . . Melee . | . . . Knockbacks . | . . . Impact . | . . . Kinetic . | . . . Secondary . | . . . Self-Inflicted Damage . | . . . Shots . | . . . Rammed . | . . . Targets Rammed . | . . . Kicked . | . . . Crushed . | . . . Highest Temperature 12 | . 12 . Average Temperature 7 | . 7 . Received Heat Transfer 54 | . 54 . Siege Activations . | . . . Robots Corrupted . | . . . Combat Hostiles . | . . . Parts Fried . | . . . Impact Corruptions . | . . . Robots Melted . | . . . Combat Hostiles . | . . . Parts Melted . | . . . Heat Transferred . | . . . Parts Sabotaged . | . . . Parts Stolen . | . . . Parts Stripped . | . . . Power Chain Reactions . | . . . Missiles Intercepted . | . . . Alert | -11 -10 -10 ------- Run | Scr Mat Min Peak Influence 205 | . 205 124 Average Influence 89 | . 98 82 Maximum Alert Level 1 | . 1 . Low Security (%) 92 | 100 85 100 Level 1 7 | . 14 . Level 2 . | . . . Level 3 . | . . . Level 4 . | . . . Level 5 . | . . . High Security . | . . . Max Security . | . . . Squads Dispatched 1 | . 1 . Investigation 1 | . 1 . Extermination . | . . . Reinforcement . | . . . Assault . | . . . Garrison . | . . . Intercept . | . . . Construction Impeded . | . . . Haulers Reinforced . | . . . Stealth | -11 -10 -10 --------- Run | Scr Mat Min Distress Signals 1 | . . 1 Communications Jammed . | . . . Distress Signals . | . . . Times Spotted 22 | . 10 12 Peak Tracking Total 6 | . 4 6 Tactical Retreats 4 | . 2 2 Traps | -11 -10 -10 ------- Run | Scr Mat Min Traps Triggered . | . . . Indirectly . | . . . Trap Hack Attempts . | . . . Triggered . | . . . Disarmed . | . . . Reprogrammed . | . . . Reused . | . . . Traps Extracted . | . . . Installed . | . . . Triggered . | . . . Machines | -11 -10 -10 ---------- Run | Scr Mat Min Machines Disabled . | . . . Max in Single Turn . | . . . Machines Sabotaged . | . . . Garrisons Compromised . | . . . Overloaded Fab Kills . | . . . Fab Network Shutdowns . | . . . Hacking | -11 -10 -10 --------- Run | Scr Mat Min Machines Accessed 2 | . 2 . Terminals 2 | . 2 . Fabricators . | . . . Repair Stations . | . . . Recycling Units . | . . . Scanalyzers . | . . . Garrison Access . | . . . Total Hacks 12 | . 12 . Successful 6 | . 6 . Failed 6 | . 6 . Catastrophic 1 | . 1 . Database Lockouts . | . . . Manual 12 | . 12 . Terminals 12 | . 12 . Fabricators . | . . . Repair Stations . | . . . Recycling Units . | . . . Scanalyzers . | . . . Garrison Access . | . . . Terminal Hacks 3 | . 3 . Record 1 | . 1 . Branch Access Points 1 | . 1 . Terminal Index 1 | . 1 . Fabricator Hacks . | . . . Repair Station Hacks . | . . . Recycling Unit Hacks . | . . . Scanalyzer . | . . . Garrison Access Hacks . | . . . Unauthorized Hacks 3 | . 3 . Terminals 3 | . 3 . Botnet 2 | . 2 . Operators 1 | . 1 . Fabricators . | . . . Repair Stations . | . . . Recycling Units . | . . . Scanalyzers . | . . . Garrison Access . | . . . Data Cores Recovered . | . . . Used . | . . . Hacking Detections 2 | . 2 . Full Trace Events 1 | . 1 . Feedback Events . | . . . Feedback Blocked . | . . . Robot Schematics Acquired . | . . . Robots Built . | . . . Matter . | . . . Time . | . . . Total Robot Build Rating . | . . . Part Schematics Acquired . | . . . Parts Built . | . . . Matter . | . . . Time . | . . . Total Part Build Rating . | . . . Parts Repaired . | . . . Time . | . . . Parts Recycled . | . . . Recycled Matter . | . . . Retrieved Matter . | . . . Retrieved Components . | . . . Parts Scanalyzed . | . . . Part Schematics Acquired . | . . . Parts Damaged . | . . . Bothacking | -11 -10 -10 ------------ Run | Scr Mat Min Used RIF Installer . | . . . Robots Hacked . | . . . Non-combat . | . . . Combat . | . . . Robot Hacks Applied . | . . . Relay Couplers Released . | . . . Robots Rewired . | . . . Allies Hacked . | . . . Hacks Repelled . | . . . Allies | -11 -10 -10 -------- Run | Scr Mat Min Total Allies . | . . . Largest Group . | . . . Highest-Rated Group . | . . . Highest-Rated Ally . | . . . Total Orders . | . . . Ally Attacks . | . . . Total Damage . | . . . Kills . | . . . Allies Corrupted . | . . . Allies Melted . | . . . Intel | -11 -10 -10 ------- Run | Scr Mat Min Robot Analysis Total . | . . . Derelict Logs Recovered 1 | . . 1 Drone Launches . | . . . Drone Recoveries . | . . . Exploration | -11 -10 -10 ------------- Run | Scr Mat Min Turns Passed 412 | 4 202 206 Spaces Moved 226 | 1 100 125 Core . | . . . Treads 11 | . . 11 Legs . | . . . Wheels 215 | 1 100 114 Hover . | . . . Flight . | . . . Fastest Speed 90 | 100 100 90 Average Speed 101 | 100 100 102 Slowest Speed 160 | 100 100 160 Overloaded Moves . | . . . Propulsion Burnouts . | . . . Robots Hopped . | . . . Cave-ins Triggered . | . . . Exploration Rate (%) 23 | 2 22 47 Regions Visited 2 Branch Regions 1 Pre-discovered Areas 1 | . . 1 Known Exits Taken 1 | . 1 . Unknown Exits Taken 1 | 1 . . Scrap Searched . | . . . Spaces Dug . | . . . Terrain Destroyed . | . . . Melee . | . . . Projectile . | . . . AOE . | . . . Actions | -11 -10 -10 --------- Run | Scr Mat Min Total 318 | 4 145 169 Wait 6 | . 6 . Move 224 | . 99 125 Hop . | . . . Pick Up 7 | . 4 3 Fast Attach . | . . . Attach 11 | 2 3 6 Detach 1 | . 1 . Swap . | . . . Drop 2 | 2 . . Fire 67 | . 32 35 Melee . | . . . Ram . | . . . Kick . | . . . Crush . | . . . Escape Stasis . | . . . Rewire . | . . . Trap . | . . . Miscellaneous . | . . . Route ------- -11/Scrapyard -10/Materials (discovered 2 exits: *Min x2) -10/Mines History --------- Turn | Location | Event 5 | -11/Scrapyard | Discovered new exit (range 0) 5 | -11/Scrapyard | Entered Materials 84 | -10/Materials | Identified exit to Mines 207 | -10/Materials | Entered Mines 208 | -10/Mines | Assembled infested the area 213 | -10/Mines | Assisted by a Guerilla fighting off Assembled 216 | -10/Mines | Met a Derelict bent on vengeance 291 | -10/Mines | Core integrity fell below 50% 309 | -10/Mines | Build established: Mutant 357 | -10/Mines | Lost 6 parts (1p2n3w) 393 | -10/Mines | Core integrity fell below 20% 413 | -10/Mines | Destroyed by as-23264 with Assembled Heavy Rifle Last Messages --------------- 00221_ as-72905 suffers critical hit. 00224_ W1-YM4(g): "I WILL HAVE VENGEANCE!" 00288_ Lgt. Assault Rifle destroyed. 00304_ Lgt. Treads destroyed. 00306_ Lgt. Assault Rifle destroyed. 00308_ Com. Wheel destroyed. 00313_ S-10 Pest destroyed. 00321_ Lgt. Ion Engine destroyed. 00322_ S-10 Pest destroyed. 00326_ Lgt. Assault Rifle destroyed. 00328_ Acquired 17 matter. 00331_ Acquired Lgt. Assault Rifle. 00342_ S-10 Pest destroyed. 00351_ Acquired 12 matter. 00354_ Acquired Lgt. Assault Rifle. 00358_ Acquired Lgt. Ion Engine. 00384_ Acquired derelict log, extracted data. World map updated: -9/Materials. 00393_ S-10 Pest destroyed. 00408_ Lgt. Treads destroyed. Map ----- +----------------------------------------------------+ | ???????# #???????????????????? | | ######## """ """ """ """ #???????????????????? | | # =""" """ """ """ #???????????????????? | | # ######%""" """ """ """ #???????????????????? | | # #????# #???????????????????? | | # #????# """ """=""" """ #???????????????????? | | # #????# """ """ """ """ #???????????????????? | | # #????# """ """ """ """ #???????????????????? | | # #????# #???????????????????? | | # #????################## ##???????????????????? | | # #?????????????????????# #????????????????????? | | # #???????????????????### #????????????????????? | | # #???????????????????# #????????????????????? | | # #???????????????????# ####????????????????????? | | #???????????????????# #???????????????????????? | | ###???????????????????# #???????????????????????? | | ??????????????????????# #???????????????????????? | | ??????????????????????# #???????????????????????? | | ??????????????????????# #???????????????????????? | | ??????????????????????# #???????????????????????? | | ??????????????????????# #???????????????????????? | | ??????????????????????# #???????????????????????? | | ??????????????????????# #?###???????????????????? | | ??????????????????????# ## ##??????????????????? | | ????????????????# ## #??????????????????? | | ????????????????# @ #??????????????????? | | ????????????????# #?????????????????? | | ????????????????## #?????????????????? | | ?????????????????# = #?????????????????? | | ?????????????????## =%[ ##?????????????????? | | ??????????????????## ## ##??????????????????? | | ???????????????????###?##%[##???????????????????? | | ????????????????????????#a##????????????????????? | | ????????????????????????# #?????????????????????? | | #???????????????????????? #?????????????????????? | | ##??????????????????????? #?????????????????????? | | #??????????????????????? ?????????????????????? | | #??????????????????????? ?????????????????????? | | ##???????????????????????# ?????????????????????? | | #????????????????????????? ?????????????????????? | | #???????????????????????????????????????????????? | | ##??????????????????????????????????????????????? | | ####???????????????????????????????????????????? | | #???????????????????????????????????????????? | | #???????????????????????????????????????????? | | ### #???????????????????????????????????????????? | | #?? #???????????????????????????????????????????? | | ????#???????????????????????????????????????????? | | ????????????????????????????????????????????????? | | ????????????????????????????????????????????????? | +----------------------------------------------------+ Best States ------------- Heat Dissipation 25 Energy Generation 10 Energy Capacity 250 Matter Stores 272 Matter Capacity 300 Sight Range 16 Terrain Scan Density 10 Evasion (%) 42 Recoil Reduction 1 Item Schematics ----------------- None Robot Schematics ------------------ None Fabricated ------------ Nothing Alien Tech Used ----------------- None Achievements -------------- None Challenges ------------ None Game ------ Seed SlugGhostUnit Manual? 0 Play Time 00:08:58 Cumulative 14.8 hours Start 2020.07.26 @ 20:01:36 End 2020.07.26 @ 20:10:02 Sessions 1 Manual Loads 0 Difficulty Rogue Special Mode None Game No. 44 Rogue 44 Adventurer 0 Explorer 0 Win Type - Total 0 Types 0/0/0/0/0/0/0 Lore% 16 Gallery% 22 Achievement% 21 Wizard Run 0 Options --------- ASCII 0 Keyboard 0 Movement Mouse Keybinds 0 Fullscreen 1 Font 18/SmallcapsGlow Map View 76x50 Tactical HUD 1 Map Filters NONE Filters NONE Steam 0 RUN: dab396b0-406d-41df-89a2-fe6c34ed1051